bitfinex-derivatives/quotes_BTCF0:USTF0_20241227
["timestamp","ask_amount","ask_price","bid_price","bid_amount"]
[1735297250588,0.051831,96597.0,96596.0,0.008]
[1735297251788,0.15475703,96607.0,96601.0,0.003]
[1735297252090,0.15475703,96607.0,96601.0,0.005]
[1735297252585,0.15475703,96607.0,96601.0,0.003]
[1735297252785,0.051831,96597.0,96596.0,0.003]
[1735297252978,0.051831,96597.0,96596.0,0.008]
[1735297253375,0.15475703,96605.0,96588.0,0.051835]
[1735297253580,0.051828,96602.0,96601.0,0.005]
[1735297254880,0.051828,96602.0,96601.0,0.003]
[1735297255081,0.051831,96597.0,96596.0,0.008]
[1735297255588,0.051831,96597.0,96596.0,0.003]
[1735297255889,0.15475703,96606.0,96601.0,0.002]
[1735297256386,0.15475703,96606.0,96604.0,0.051827]
[1735297256886,0.15475703,96606.0,96596.0,0.008]
[1735297257079,0.30947438,96606.0,96605.0,1.5]
[1735297257281,0.30947438,96606.0,96596.0,0.008]
[1735297257282,0.05183,96598.0,96596.0,0.008]
[1735297257785,0.0427,96597.0,96596.0,0.008]
[1735297258091,0.051839,96582.0,96578.0,0.24798622]
[1735297258387,0.05184,96579.0,96578.0,0.24798622]
[1735297259383,0.051843,96574.0,96569.0,0.051845]
[1735297260987,0.051844,96572.0,96569.0,0.051845]
[1735297261687,0.10289135,96580.0,96564.0,0.00155333]
[1735297261984,0.051841,96578.0,96572.0,0.051844]
[1735297262178,0.051843,96575.0,96572.0,0.051844]
[1735297262580,0.051846,96569.0,96564.0,0.05340133]
[1735297262778,0.051847,96567.0,96564.0,0.05340133]
[1735297263087,0.051848,96565.0,96564.0,0.00655333]
[1735297263291,0.051848,96565.0,96564.0,0.00355333]
[1735297263995,0.051848,96565.0,96564.0,1.50355333]
[1735297264381,0.051848,96565.0,96564.0,1.50255333]
[1735297264988,0.051848,96565.0,96564.0,1.50355333]
[1735297265687,0.051848,96565.0,96564.0,1.501]
[1735297265885,0.051848,96565.0,96564.0,0.001]
[1735297267194,0.06209747,96565.0,96564.0,0.001]
[1735297268300,0.36209747,96565.0,96545.0,1.5]
[1735297268501,0.051861,96539.0,96532.0,0.051865]
[1735297268693,0.051862,96537.0,96532.0,0.051865]
[1735297268999,0.051862,96537.0,96524.0,0.18593073]
[1735297269000,0.051866,96530.0,96527.0,0.00155381]
[1735297269902,0.10289135,96540.0,96527.0,0.00155381]
[1735297270097,0.10289135,96540.0,96516.0,0.18582649]
[1735297270098,0.0449,96529.0,96516.0,0.18582649]
[1735297270303,0.051873,96517.0,96516.0,0.18582649]
[1735297271100,0.051878,96508.0,96500.0,0.1]
[1735297271606,0.051873,96517.0,96500.0,0.1]
[1735297271797,0.051873,96517.0,96507.0,0.051878]
[1735297271997,0.051873,96517.0,96516.0,0.009]
[1735297272804,0.051878,96508.0,96500.0,0.108]
[1735297273100,0.10289135,96510.0,96500.0,0.117]
[1735297273298,0.051879,96507.0,96500.0,0.117]
[1735297274408,0.051877,96509.0,96507.0,0.007]
[1735297274906,0.051877,96509.0,96508.0,1.5]
[1735297275999,0.11308342,96517.0,96508.0,1.5]
[1735297276206,0.15476435,96517.0,96516.0,0.009]
[1735297276405,0.051873,96517.0,96516.0,0.009]
[1735297276805,0.051874,96515.0,96508.0,1.566878]
[1735297277296,0.051874,96515.0,96509.0,0.0443]
[1735297277905,0.01019746,96524.0,96509.0,0.0443]
[1735297278100,0.051869,96525.0,96511.0,0.051876]
[1735297278410,0.10289135,96526.0,96516.0,0.051873]
[1735297278708,0.05187,96522.0,96516.0,0.051873]
[1735297279103,0.10289135,96526.0,96511.0,0.005]
[1735297279407,0.051876,96513.0,96511.0,0.005]
[1735297280309,0.051876,96513.0,96511.0,0.014]
[1735297280807,0.051869,96524.0,96511.0,0.009]
[1735297281108,0.044,96525.0,96511.0,0.009]
[1735297281498,0.044,96525.0,96511.0,0.014]
[1735297281812,0.051873,96518.0,96511.0,0.065876]
[1735297282111,0.051873,96518.0,96511.0,0.060876]
[1735297282301,0.051873,96518.0,96513.0,0.051875]
[1735297282507,0.0384,96539.0,96511.0,0.014]
[1735297282809,0.15475235,96540.0,96532.0,0.051865]
[1735297283014,0.051856,96549.0,96533.0,1.5]
[1735297283310,0.051856,96549.0,96544.0,0.051858]
[1735297283910,0.051856,96549.0,96534.0,0.1239]
[1735297284108,0.10289135,96550.0,96547.0,0.051856]
[1735297284301,0.10289135,96557.0,96539.0,0.051861]
[1735297284502,0.051856,96548.0,96541.0,0.05186]
[1735297285103,0.051857,96547.0,96541.0,0.05186]
[1735297286401,0.053857,96547.0,96541.0,0.05186]
[1735297287799,0.051863,96536.0,96534.0,0.0409]
[1735297287999,0.039,96546.0,96521.0,0.00155398]
[1735297288308,0.10289135,96531.0,96523.0,0.051869]
[1735297288617,0.15475635,96531.0,96523.0,0.051869]
[1735297289010,0.15475635,96531.0,96525.0,0.051868]
[1735297289200,0.051861,96539.0,96522.0,0.0404]
[1735297289698,0.051854,96553.0,96547.0,0.051856]
[1735297289899,0.10289135,96560.0,96529.0,0.10289135]
[1735297290108,0.15474135,96560.0,96551.0,0.051854]
[1735297290308,0.051851,96558.0,96551.0,0.051854]
[1735297290725,0.23607703,96567.0,96540.0,0.10289135]
[1735297290726,0.19527703,96567.0,96540.0,0.10289135]
[1735297290922,0.002,96553.0,96552.0,0.051854]
[1735297291103,0.15475703,96567.0,96566.0,0.051847]
[1735297292215,0.15475703,96567.0,96552.0,1.551854]
[1735297292216,0.10289135,96580.0,96552.0,1.51020095]
[1735297292409,0.10289135,96570.0,96563.0,0.051848]
[1735297292714,0.10289135,96570.0,96552.0,1.5]
[1735297292919,0.001,96558.0,96557.0,0.051851]
[1735297293415,0.051847,96566.0,96557.0,0.051851]
[1735297293602,0.051849,96562.0,96557.0,0.051851]
[1735297293801,0.2057827,96570.0,96552.0,0.009]
[1735297293802,0.051851,96559.0,96552.0,0.009]
[1735297294104,0.051851,96558.0,96557.0,0.008]
[1735297294715,0.051853,96554.0,96542.0,0.051859]
[1735297294915,0.10289135,96560.0,96536.0,0.0414]
[1735297295213,0.10289135,96560.0,96556.0,0.051852]
[1735297296015,0.10289135,96570.0,96564.0,0.051847]
[1735297296218,0.051842,96574.0,96564.0,0.051847]
[1735297297319,0.052842,96574.0,96564.0,0.051847]
[1735297297508,0.051843,96572.0,96564.0,0.051847]
[1735297298007,0.051844,96571.0,96564.0,0.053847]
[1735297298406,0.051844,96571.0,96564.0,0.002]
[1735297298614,0.051844,96571.0,96567.0,0.051846]
[1735297298920,0.12244136,96578.0,96564.0,0.002]
[1735297299105,0.12244136,96578.0,96565.0,0.0395]
[1735297299307,0.12244136,96578.0,96575.0,0.051841]
[1735297300218,0.15473542,96580.0,96575.0,0.051841]
[1735297301116,0.001,96578.0,96575.0,0.051841]
[1735297301903,0.001,96578.0,96576.0,1.5]
[1735297302113,0.001,96578.0,96575.0,0.051841]
[1735297302513,0.001,96578.0,96577.0,0.051841]
[1735297303216,0.001,96580.0,96577.0,1.5]
[1735297303417,0.001,96580.0,96579.0,0.051839]
[1735297303807,0.27717678,96590.0,96577.0,1.5]
[1735297304006,0.27717678,96590.0,96582.0,0.051838]
[1735297304223,0.051835,96588.0,96582.0,0.051838]
[1735297304610,0.051836,96586.0,96582.0,0.051838]
[1735297305109,0.12244136,96596.0,96579.0,0.001]
[1735297305315,0.12244136,96596.0,96595.0,0.051831]
[1735297306517,0.12344136,96596.0,96595.0,0.051831]
[1735297306918,0.12344136,96596.0,96595.0,1.551831]
[1735297307125,0.12444136,96596.0,96595.0,1.552831]
[1735297307324,0.002,96596.0,96595.0,1.552831]
[1735297308420,0.002,96596.0,96595.0,0.06320567]
[1735297309325,0.002,96596.0,96595.0,0.001]
[1735297309527,0.0819,96596.0,96595.0,0.001]
[1735297309725,0.121,96596.0,96595.0,0.001]
[1735297311323,0.121,96596.0,96565.0,0.34828]
[1735297311623,0.051847,96567.0,96564.0,0.051848]
[1735297311829,0.051846,96568.0,96557.0,0.18582649]
[1735297312224,0.0397,96574.0,96557.0,0.18582649]
[1735297312534,0.0397,96574.0,96550.0,0.00155356]
[1735297312535,0.051852,96558.0,96553.0,0.051854]
[1735297312718,0.051852,96557.0,96553.0,0.051854]
[1735297313235,0.0405,96566.0,96554.0,1.5]
[1735297313422,0.051855,96552.0,96550.0,0.00155356]
[1735297313624,0.051856,96550.0,96549.0,0.05958005]
[1735297314235,0.05186,96542.0,96530.0,0.051866]
[1735297314527,0.20659642,96540.0,96530.0,0.051866]
[1735297316222,0.20659642,96540.0,96530.0,0.054866]
[1735297316932,0.20659642,96540.0,96530.0,0.060866]
[1735297318629,0.051861,96540.0,96530.0,0.060866]
[1735297319331,0.051861,96540.0,96531.0,1.5]
[1735297320030,0.15473542,96541.0,96534.0,0.051864]
[1735297320230,0.20659642,96541.0,96534.0,0.051864]
[1735297320539,0.051856,96549.0,96531.0,1.505]
[1735297320734,0.15475703,96557.0,96532.0,0.0415]
[1735297320735,0.12244136,96556.0,96532.0,0.0415]
[1735297320928,0.12244136,96556.0,96549.0,0.051856]
[1735297321526,0.051853,96555.0,96549.0,0.051856]
[1735297321730,0.15473542,96560.0,96549.0,0.051856]
[1735297321920,0.051854,96554.0,96549.0,0.051856]
[1735297322124,0.051856,96551.0,96540.0,0.051861]
[1735297322333,0.15473542,96550.0,96541.0,0.05186]
[1735297322734,0.15473542,96550.0,96542.0,0.05186]
[1735297323327,0.15473542,96550.0,96544.0,0.051859]
[1735297323530,0.051856,96551.0,96534.0,0.051864]
[1735297323829,0.051856,96551.0,96541.0,0.001]
[1735297324029,0.20659142,96551.0,96543.0,0.051859]
[1735297324430,0.20659142,96551.0,96544.0,0.051859]
[1735297324624,0.051856,96551.0,96546.0,0.051858]
[1735297324937,0.051851,96559.0,96551.0,0.051855]
[1735297325139,0.051851,96559.0,96541.0,0.001]
[1735297325437,0.051851,96559.0,96556.0,0.051852]
[1735297325635,0.12244136,96564.0,96562.0,0.051849]
[1735297325936,0.12244136,96570.0,96562.0,0.051849]
[1735297326129,0.17428636,96570.0,96562.0,0.051849]
[1735297326322,0.051846,96569.0,96562.0,0.051849]
[1735297328033,0.003,96570.0,96562.0,0.001]
[1735297328254,0.051849,96563.0,96562.0,0.001]
[1735297328430,0.003,96570.0,96562.0,0.001]
[1735297328630,0.003,96570.0,96567.0,0.051846]
[1735297328834,0.003,96570.0,96568.0,0.051846]
[1735297329231,0.002,96570.0,96568.0,0.051846]
[1735297329427,0.17428136,96579.0,96572.0,0.051844]
[1735297330139,0.05184,96579.0,96572.0,0.051844]
[1735297330735,0.002,96579.0,96572.0,0.051844]
[1735297330936,0.051842,96577.0,96572.0,0.051844]
[1735297331443,0.051842,96577.0,96554.0,1.5]
[1735297331444,0.002,96579.0,96536.0,0.24798622]
[1735297331630,0.15473542,96560.0,96551.0,0.051855]
[1735297331825,0.051854,96554.0,96551.0,0.051855]
[1735297332332,0.10318986,96561.0,96544.0,0.051859]
[1735297332540,0.0409,96553.0,96544.0,0.051859]
[1735297332734,0.10318986,96554.0,96533.0,0.0394]
[1735297333242,0.10318986,96554.0,96552.0,0.051854]
[1735297333439,0.051855,96553.0,96551.0,0.002]
[1735297334137,0.35004086,96561.0,96533.0,0.106264]
[1735297334343,0.15482043,96543.0,96533.0,0.106264]
[1735297334546,0.051861,96540.0,96533.0,0.106264]
[1735297334936,0.051861,96540.0,96534.0,0.051864]
[1735297335333,0.051861,96540.0,96536.0,0.051863]
[1735297335641,0.15482043,96543.0,96540.0,0.051861]
[1735297336344,0.15482043,96543.0,96542.0,0.05186]
[1735297336644,0.15482043,96552.0,96536.0,0.053863]
[1735297336830,0.19402043,96546.0,96536.0,0.056863]
[1735297337033,0.19402043,96546.0,96536.0,0.005]
[1735297337245,0.05186,96542.0,96536.0,0.005]
[1735297337431,0.19402043,96546.0,96540.0,0.001]
[1735297337743,0.051856,96550.0,96546.0,0.051857]
[1735297338440,0.051856,96550.0,96540.0,0.001]
[1735297338639,0.051856,96550.0,96547.0,0.051857]
[1735297338839,0.051856,96550.0,96548.0,1.5]
[1735297339945,0.051856,96550.0,96548.0,0.051856]
[1735297340145,0.053856,96550.0,96548.0,0.051856]
[1735297340336,0.053856,96550.0,96549.0,1.5]
[1735297341338,0.053856,96550.0,96548.0,0.051856]
[1735297341741,0.051857,96548.0,96541.0,0.05186]
[1735297341939,0.002,96550.0,96533.0,0.0394]
[1735297341940,0.051861,96541.0,96533.0,0.0394]
[1735297342238,0.051861,96541.0,96535.0,0.051863]
[1735297342436,0.051861,96541.0,96536.0,0.051863]
[1735297342731,0.051861,96541.0,96537.0,0.051862]
[1735297343135,0.09235444,96537.0,96535.0,1.5]
[1735297343335,0.09235444,96537.0,96536.0,0.051863]
[1735297344649,0.09235444,96537.0,96536.0,1.551863]
[1735297345745,0.09235444,96537.0,96536.0,1.556863]
[1735297345943,0.051861,96541.0,96539.0,0.051862]
[1735297347346,0.051861,96541.0,96539.0,0.053862]
[1735297348745,0.051861,96541.0,96539.0,0.055862]
[1735297351844,0.051861,96541.0,96539.0,0.004]
[1735297352041,0.051862,96539.0,96524.0,0.24798622]
[1735297352243,0.051869,96525.0,96524.0,0.24798622]
[1735297352850,0.051874,96516.0,96515.0,0.24798622]
[1735297354252,0.051874,96511.0,96506.0,0.051879]
[1735297354546,0.051874,96510.0,96506.0,0.051879]
[1735297354759,0.051876,96506.0,96499.0,0.051879]
[1735297354948,0.051876,96507.0,96499.0,0.051879]
[1735297355651,0.051876,96507.0,96493.0,0.01018249]
[1735297355855,0.09229183,96510.0,96493.0,0.01018249]
[1735297356153,0.001,96507.0,96503.0,0.051877]
[1735297356354,0.001,96507.0,96505.0,0.051876]
[1735297357140,0.09229183,96515.0,96514.0,0.051872]
[1735297357753,0.09229183,96515.0,96514.0,1.551872]
[1735297358454,0.05187,96518.0,96514.0,1.5]
[1735297358645,0.05187,96518.0,96515.0,0.051871]
[1735297359046,0.051866,96526.0,96519.0,0.051869]
[1735297359458,0.051866,96526.0,96520.0,0.051868]
[1735297360260,0.051866,96525.0,96520.0,0.051868]
[1735297360661,0.051867,96523.0,96520.0,0.051868]
[1735297361155,0.09229183,96529.0,96515.0,0.0484]
[1735297361454,0.05187,96519.0,96515.0,0.0484]
[1735297361656,0.05187,96519.0,96515.0,0.096271]
[1735297362359,0.05187,96519.0,96515.0,0.093271]
[1735297362566,0.05187,96519.0,96516.0,0.051871]
[1735297362758,0.051866,96526.0,96520.0,0.051869]
[1735297362960,0.09229183,96523.0,96520.0,0.051869]
[1735297363965,0.051868,96522.0,96520.0,0.051869]
[1735297364552,0.09229183,96523.0,96515.0,0.0404]
[1735297364767,0.09229183,96523.0,96515.0,0.001]
[1735297364768,0.051871,96517.0,96515.0,0.001]
[1735297364956,0.09229183,96523.0,96508.0,0.051875]
[1735297365156,0.10327102,96518.0,96508.0,0.051875]
[1735297365456,0.051879,96501.0,96500.0,0.1]
[1735297366779,0.054879,96501.0,96500.0,0.1]
[1735297367380,0.054879,96501.0,96500.0,0.103]
[1735297368387,0.054879,96501.0,96500.0,0.1]
[1735297368785,0.055879,96501.0,96500.0,0.1]
[1735297368988,0.055879,96501.0,96460.0,0.10327102]
[1735297368989,0.051884,96492.0,96485.0,0.051888]
[1735297369173,0.051885,96491.0,96485.0,0.051888]
[1735297369580,0.051886,96489.0,96485.0,0.051888]
[1735297370291,0.10327102,96495.0,96492.0,0.051884]
[1735297370470,0.051882,96496.0,96492.0,0.051884]
[1735297371476,0.051883,96493.0,96492.0,0.051884]
[1735297371684,0.12310921,96498.0,96485.0,0.001]
[1735297371890,0.051887,96487.0,96485.0,0.001]
[1735297372180,0.10327102,96495.0,96492.0,0.001]
[1735297372484,0.09217187,96496.0,96492.0,0.001]
[1735297372691,0.002,96493.0,96492.0,0.001]
[1735297373272,0.003,96495.0,96492.0,0.001]
[1735297373579,0.051883,96493.0,96492.0,0.001]
[1735297373880,0.051888,96485.0,96479.0,0.051891]
[1735297374384,0.0424,96495.0,96479.0,0.051891]
[1735297374586,0.051889,96484.0,96479.0,0.051891]
[1735297375370,0.051889,96484.0,96479.0,0.054891]
[1735297375969,0.051889,96484.0,96479.0,0.053891]
[1735297376174,0.05181171,96484.0,96479.0,0.053891]
[1735297376971,0.05181171,96484.0,96479.0,0.055891]
[1735297377587,0.05181171,96484.0,96479.0,0.053891]
[1735297377787,0.05181171,96484.0,96479.0,0.055891]
[1735297377987,0.05181171,96484.0,96479.0,0.056891]
[1735297378296,0.05181171,96484.0,96479.0,0.054891]
[1735297378480,0.05181171,96484.0,96479.0,0.056891]
[1735297379179,0.06226123,96484.0,96479.0,0.056891]
[1735297379487,0.06226123,96484.0,96479.0,0.053891]
[1735297379687,0.06226123,96484.0,96479.0,0.055891]
[1735297379874,0.051891,96481.0,96479.0,0.004]
[1735297380588,0.051891,96481.0,96479.0,0.002]
[1735297380773,0.051891,96481.0,96479.0,0.004]
[1735297382295,0.06248688,96481.0,96479.0,0.004]
[1735297383786,0.15461357,96481.0,96479.0,0.004]
[1735297384389,0.10272257,96481.0,96480.0,0.051891]
[1735297384979,0.06248588,96481.0,96480.0,0.051891]
[1735297385375,0.01059588,96481.0,96480.0,0.051891]
[1735297385581,0.09212669,96482.0,96480.0,0.051891]
[1735297385886,0.09212669,96482.0,96480.0,0.053891]
[1735297386293,0.09212669,96482.0,96481.0,1.5]
[1735297386480,0.09212669,96486.0,96485.0,0.051886]
[1735297387178,0.12310921,96491.0,96490.0,0.051883]
[1735297387881,0.11344452,96500.0,96485.0,1.5]
[1735297388086,0.11344452,96500.0,96495.0,0.05188]
[1735297388304,0.0101735,96500.0,96485.0,1.5]
[1735297388487,0.10327102,96500.0,96496.0,0.051879]
[1735297388690,0.12310921,96501.0,96496.0,0.051879]
[1735297388985,0.12310921,96501.0,96485.0,1.5]
[1735297389187,0.10327102,96500.0,96499.0,0.051878]
[1735297389390,0.12310921,96502.0,96501.0,0.051877]
[1735297389789,0.12310921,96502.0,96501.0,0.092677]
[1735297390390,0.27957223,96510.0,96501.0,0.0408]
[1735297390686,0.27825223,96510.0,96504.0,0.051875]
[1735297391588,0.15514302,96510.0,96504.0,0.051875]
[1735297392090,0.051877,96503.0,96501.0,0.002]
[1735297392298,0.0399,96502.0,96501.0,0.002]
[1735297392484,0.0796,96502.0,96501.0,0.002]
[1735297392679,0.0796,96502.0,96486.0,0.0814]
[1735297392884,0.15514902,96500.0,96486.0,0.0814]
[1735297393086,0.051878,96500.0,96491.0,0.051882]
[1735297393392,0.051874,96508.0,96486.0,0.0814]
[1735297393591,0.10327102,96500.0,96494.0,0.051881]
[1735297393778,0.12310921,96509.0,96494.0,0.051881]
[1735297394184,0.20654204,96510.0,96486.0,0.0814]
[1735297394185,0.12310921,96497.0,96487.0,1.5]
[1735297394483,0.12310921,96497.0,96495.0,0.05188]
[1735297394789,0.15475703,96504.0,96503.0,0.051876]
[1735297395499,0.15475703,96515.0,96514.0,0.05187]
[1735297395683,0.15475703,96515.0,96514.0,1.55187]
[1735297396091,0.15475703,96515.0,96514.0,0.05187]
[1735297396295,0.051871,96512.0,96506.0,0.051874]
[1735297396592,0.15475703,96515.0,96498.0,0.051879]
[1735297396791,0.10327102,96504.0,96498.0,0.051879]
[1735297397893,0.10327102,96504.0,96503.0,0.051876]
[1735297398090,0.10327102,96513.0,96505.0,0.051875]
[1735297398394,0.0631909,96515.0,96505.0,0.051875]
[1735297398587,0.0631909,96515.0,96506.0,0.051874]
[1735297398994,0.0621909,96515.0,96506.0,0.051874]
[1735297399789,0.0103209,96515.0,96498.0,0.002]
[1735297399982,0.051875,96506.0,96498.0,0.055879]
[1735297400585,0.051875,96506.0,96498.0,0.051879]
[1735297400791,0.051875,96506.0,96487.0,0.01029802]
[1735297400988,0.051871,96514.0,96507.0,0.051874]
[1735297401183,0.051871,96514.0,96509.0,0.051873]
[1735297402589,0.0397,96523.0,96520.0,0.051867]
[1735297402795,0.15475703,96528.0,96510.0,0.10327102]
[1735297402995,0.15475703,96528.0,96526.0,0.051863]
[1735297403191,0.15475703,96528.0,96527.0,1.5]
[1735297404195,0.10327102,96540.0,96528.0,0.051863]
[1735297404498,0.10327102,96540.0,96536.0,0.051858]
[1735297404699,0.051856,96541.0,96536.0,0.051858]
[1735297405191,0.0373,96546.0,96527.0,1.501]
[1735297405496,0.0373,96546.0,96541.0,0.051856]
[1735297406092,0.0373,96546.0,96527.0,1.501]
[1735297406295,0.0373,96546.0,96542.0,0.051855]
[1735297406894,0.0385,96553.0,96530.0,0.10327102]
[1735297407096,0.15475703,96561.0,96559.0,0.051846]
[1735297407997,0.15475703,96561.0,96542.0,1.5792]
[1735297407998,0.15510602,96580.0,96571.0,0.051839]
[1735297408200,0.15510602,96580.0,96553.0,0.051849]
[1735297408387,0.15475703,96581.0,96560.0,0.10327102]
[1735297408586,0.15475703,96581.0,96579.0,0.051835]
[1735297409596,0.15475703,96581.0,96579.0,0.054835]
[1735297409897,0.051831,96588.0,96582.0,0.051834]
[1735297410494,0.10327102,96590.0,96580.0,1.5]
[1735297410701,0.051826,96596.0,96585.0,0.051832]
[1735297411196,0.1138,96598.0,96579.0,0.001]
[1735297411397,0.1,96600.0,96588.0,0.10327102]
[1735297411598,0.1,96600.0,96598.0,0.051825]
[1735297411903,0.1,96600.0,96599.0,0.0375]
[1735297412803,0.1,96600.0,96598.0,0.051825]
[1735297413194,0.1,96600.0,96598.0,0.055825]
[1735297413602,0.1,96600.0,96589.0,0.05183]
[1735297413902,0.1,96600.0,96581.0,0.0375]
[1735297413903,0.20627102,96600.0,96581.0,0.0375]
[1735297414106,0.051828,96593.0,96580.0,0.051835]
[1735297414301,0.102,96600.0,96580.0,0.10327102]
[1735297414610,0.102,96600.0,96592.0,0.051828]
[1735297414999,0.102,96600.0,96594.0,0.051827]
[1735297415802,0.1,96600.0,96594.0,0.051827]
[1735297416203,0.1,96600.0,96584.0,0.051832]
[1735297416406,0.101,96600.0,96584.0,0.051832]
[1735297417403,0.1,96600.0,96592.0,0.001]
[1735297418204,0.1,96600.0,96587.0,0.051831]
[1735297419007,0.1,96600.0,96592.0,0.001]
[1735297420596,0.1,96600.0,96588.0,0.05183]
[1735297420991,0.151825,96600.0,96588.0,0.05183]
[1735297421394,0.1,96600.0,96588.0,0.05183]
[1735297421694,0.60654204,96600.0,96573.0,0.051838]
[1735297422016,0.051834,96582.0,96573.0,0.051838]
[1735297422306,0.1141,96581.0,96573.0,0.051838]
[1735297422607,0.05184,96570.0,96557.0,0.051847]
[1735297422994,0.05184,96570.0,96550.0,0.10327102]
[1735297423193,0.1141,96581.0,96573.0,0.051838]
[1735297424797,0.051835,96580.0,96573.0,0.051838]
[1735297424993,0.1141,96581.0,96579.0,0.051835]
[1735297425205,0.0369,96581.0,96579.0,0.051835]
[1735297425503,0.051826,96596.0,96590.0,0.051829]
[1735297426704,0.054826,96596.0,96590.0,0.052829]
[1735297426912,0.051827,96595.0,96590.0,0.052829]
[1735297427101,0.003,96596.0,96590.0,0.052829]
[1735297427410,0.051828,96592.0,96590.0,0.001]
[1735297428510,0.003,96596.0,96594.0,0.051827]
[1735297428808,0.1149,96599.0,96594.0,0.051827]
[1735297429005,0.1149,96599.0,96590.0,0.001]
[1735297429205,0.1149,96599.0,96597.0,0.051825]
[1735297429407,0.1149,96599.0,96590.0,0.001]
[1735297429600,0.051829,96592.0,96590.0,0.001]
[1735297429807,0.051827,96595.0,96594.0,0.001]
[1735297430314,0.1189,96599.0,96583.0,0.051833]
[1735297430508,0.051825,96598.0,96597.0,0.001]
[1735297432702,0.055825,96598.0,96597.0,0.001]
[1735297432906,0.004,96598.0,96578.0,0.051836]
[1735297433213,0.051837,96576.0,96570.0,0.05184]
[1735297433403,0.0337,96575.0,96570.0,0.05184]
[1735297433712,0.0337,96575.0,96571.0,0.051839]
[1735297434105,0.051833,96584.0,96573.0,0.051838]
[1735297434305,0.0337,96589.0,96570.0,0.10327102]
[1735297434508,0.0337,96589.0,96584.0,0.051832]
[1735297434706,0.051835,96581.0,96576.0,0.051837]
[1735297434914,0.0337,96589.0,96563.0,1.5]
[1735297435116,0.051836,96579.0,96570.0,0.05184]
[1735297435309,0.001,96575.0,96570.0,0.05184]
[1735297435617,0.052838,96575.0,96570.0,0.05184]
[1735297435810,0.052838,96575.0,96562.0,0.051844]
[1735297435811,0.05184,96570.0,96562.0,0.051844]
[1735297436009,0.05184,96570.0,96566.0,0.051842]
[1735297436909,0.087537,96577.0,96570.0,0.05184]
[1735297437114,0.087537,96577.0,96568.0,0.00255317]
[1735297437115,0.05184,96570.0,96568.0,0.00255317]
[1735297438517,0.087537,96577.0,96568.0,0.05439417]
[1735297438920,0.0357,96577.0,96568.0,0.00155317]
[1735297439218,0.051837,96576.0,96572.0,0.051839]
[1735297440420,0.053837,96576.0,96572.0,0.051839]
[1735297441224,0.051838,96575.0,96572.0,0.051839]
[1735297441417,0.051838,96574.0,96572.0,0.051839]
[1735297442925,0.05184,96571.0,96568.0,0.00155317]
[1735297443722,0.051841,96569.0,96568.0,0.00155317]
[1735297445233,0.0357,96577.0,96568.0,0.00255317]
[1735297445434,0.051838,96575.0,96569.0,0.051841]
[1735297445639,0.0357,96577.0,96569.0,0.051841]
[1735297445839,0.05184,96570.0,96568.0,0.00255317]
[1735297446138,0.05184,96570.0,96569.0,0.0012681]
[1735297446836,0.04700544,96577.0,96569.0,0.0531081]
[1735297447035,0.001,96577.0,96569.0,0.0012681]
[1735297447236,0.001,96577.0,96576.0,0.051837]
[1735297447431,0.15305697,96579.0,96578.0,0.051836]
[1735297448240,0.15305697,96579.0,96578.0,0.0531041]
[1735297448437,0.035,96596.0,96578.0,0.0531041]
[1735297448438,0.18805697,96596.0,96578.0,0.0531041]
[1735297448637,0.18805697,96596.0,96592.0,0.051828]
[1735297449340,0.18805697,96596.0,96594.0,0.0012681]
[1735297449737,0.19205697,96596.0,96594.0,0.0012681]
[1735297450044,0.039,96596.0,96594.0,0.0012681]
[1735297450339,0.043,96596.0,96595.0,0.0012681]
[1735297450540,0.039,96596.0,96595.0,0.0012681]
[1735297450736,0.043,96596.0,96595.0,0.0012681]
[1735297451048,0.008,96596.0,96595.0,0.0012681]
[1735297452443,0.008,96596.0,96595.0,0.0022681]
[1735297454240,0.00805431,96596.0,96595.0,0.0022681]
[1735297455249,0.13127241,96596.0,96595.0,0.0022681]
[1735297455546,0.13127241,96596.0,96595.0,0.0540951]
[1735297456239,0.00805431,96596.0,96595.0,0.0540951]
[1735297457538,0.00805431,96596.0,96595.0,1.5540951]
[1735297457738,0.00405431,96596.0,96595.0,1.5550951]
[1735297458941,0.00405431,96596.0,96595.0,1.5540951]
[1735297459142,5.431e-05,96596.0,96595.0,1.5540951]
[1735297459860,0.1,96600.0,96595.0,1.5022681]
[1735297460047,0.1,96600.0,96599.0,0.051825]
[1735297460353,0.1,96600.0,96599.0,0.0530931]
[1735297461052,0.023181,96600.0,96599.0,0.0530931]
[1735297461840,0.023181,96600.0,96599.0,1.5530931]
[1735297462455,0.025181,96600.0,96599.0,1.5530931]
[1735297464659,0.025181,96600.0,96599.0,0.0530931]
[1735297465248,0.025181,96600.0,96599.0,0.23865907]
[1735297466657,0.025181,96600.0,96599.0,0.0530931]
[1735297469959,0.025181,96600.0,96599.0,1.5530931]
[1735297471959,1e-06,96600.0,96599.0,1.5530931]
[1735297472265,1e-06,96600.0,96599.0,1.86339145]
[1735297472564,1e-06,96607.0,96606.0,0.051821]
[1735297473267,0.1232181,96629.0,96628.0,0.051809]
[1735297473767,0.1232181,96629.0,96628.0,1.551809]
[1735297473967,0.0345,96634.0,96628.0,1.5]
[1735297474167,0.0345,96634.0,96633.0,0.051806]
[1735297474369,0.0345,96634.0,96633.0,0.0530741]
[1735297475957,0.0345,96634.0,96633.0,0.0590741]
[1735297478368,0.0345,96634.0,96633.0,0.0620741]
[1735297478958,0.0345,96634.0,96633.0,0.0560741]
[1735297479157,0.0345,96634.0,96633.0,0.0630741]
[1735297479455,0.035,96645.0,96644.0,0.0518]